[Event "Live Chess"]
[Site "Chess.com"]
[Date "2023.05.21"]
[Round "-"]
[White "Mugzwang"]
[Black "EdenHazard8"]
[Result "1/2-1/2"]
[WhiteElo "1564"]
[BlackElo "1956"]
[TimeControl "300"]
[EndTime "3:18:38 PDT"]
[Termination "Game drawn by repetition"]

1. Nf3 {[%clk 0:04:58.6]} 1... d5 {[%clk 0:04:58.4]} 2. c4 {[%clk 0:04:56.4]}
2... e6 {[%clk 0:04:57.3]} 3. g3 {[%clk 0:04:54.5]} 3... Nf6 {[%clk 0:04:56.1]}
4. Bg2 {[%clk 0:04:53.7]} 4... Be7 {[%clk 0:04:54.2]} 5. O-O {[%clk 0:04:53.3]}
5... O-O {[%clk 0:04:53.2]} 6. b3 {[%clk 0:04:52.7]} 6... dxc4 {[%clk
0:04:51.4]} 7. bxc4 {[%clk 0:04:49.7]} 7... c5 {[%clk 0:04:51.1]} 8. d3 {[%clk
0:04:48.9]} 8... Nc6 {[%clk 0:04:49.3]} 9. Bb2 {[%clk 0:04:47.7]} 9... Nd4
{[%clk 0:04:46.9]} 10. Nxd4 {[%clk 0:04:43.1]} 10... cxd4 {[%clk 0:04:46.8]} 11.
Nd2 {[%clk 0:04:40.6]} 11... e5 {[%clk 0:04:35.5]} 12. Rb1 {[%clk 0:04:28.4]}
12... Rb8 {[%clk 0:04:30.9]} 13. Qa4 {[%clk 0:04:07.2]} 13... Bd7 {[%clk
0:04:24.9]} 14. Qc2 {[%clk 0:03:52]} 14... Bc6 {[%clk 0:04:21.7]} 15. Bxc6
{[%clk 0:03:33.2]} 15... bxc6 {[%clk 0:04:21.6]} 16. Qa4 {[%clk 0:03:23.4]}
16... Qc7 {[%clk 0:04:10.4]} 17. Ba3 {[%clk 0:03:09.2]} 17... Bxa3 {[%clk
0:04:06.4]} 18. Qxa3 {[%clk 0:03:07.7]} 18... c5 {[%clk 0:04:05.3]} 19. Qa4
{[%clk 0:02:34.3]} 19... Rb6 {[%clk 0:04:01.1]} 20. Rb5 {[%clk 0:02:30.1]} 20...
Rfb8 {[%clk 0:03:57.9]} 21. Rfb1 {[%clk 0:02:28.3]} 21... g6 {[%clk 0:03:49.6]}
22. Nf3 {[%clk 0:02:18.1]} 22... a6 {[%clk 0:03:35.1]} 23. Rxb6 {[%clk
0:02:11.6]} 23... Rxb6 {[%clk 0:03:35]} 24. Rxb6 {[%clk 0:02:01.4]} 24... Qxb6
{[%clk 0:03:33.4]} 25. Nxe5 {[%clk 0:01:57.4]} 25... Qb1+ {[%clk 0:03:32.1]} 26.
Kg2 {[%clk 0:01:54.6]} 26... Qb7+ {[%clk 0:03:32]} 27. Kg1 {[%clk 0:01:51.8]}
27... Qb1+ {[%clk 0:03:29.6]} 28. Kg2 {[%clk 0:01:50.8]} 28... Qb7+ {[%clk
0:03:29.5]} 29. Kg1 {[%clk 0:01:49.8]} 29... Qb1+ {[%clk 0:03:27.9]} 1/2-1/2

[Event "Live Chess"]
[Site "Chess.com"]
[Date "2023.05.21"]
[Round "-"]
[White "Keithdfg"]
[Black "Ferrarifan27"]
[Result "0-1"]
[WhiteElo "1590"]
[BlackElo "2106"]
[TimeControl "300"]
[EndTime "3:18:53 PDT"]
[Termination "Ferrarifan27 won by resignation"]

1. d3 {[%clk 0:04:58.5]} 1... d5 {[%clk 0:04:58.3]} 2. Nd2 {[%clk 0:04:56.7]}
2... e5 {[%clk 0:04:55.6]} 3. Ngf3 {[%clk 0:04:54.4]} 3... Nc6 {[%clk
0:04:51.8]} 4. e4 {[%clk 0:04:54.3]} 4... Nf6 {[%clk 0:04:44.2]} 5. Be2 {[%clk
0:04:52.4]} 5... Be6 {[%clk 0:04:42.7]} 6. c3 {[%clk 0:04:51.2]} 6... h6 {[%clk
0:04:39.8]} 7. O-O {[%clk 0:04:49.8]} 7... Bc5 {[%clk 0:04:33.4]} 8. b4 {[%clk
0:04:48.7]} 8... Bb6 {[%clk 0:04:32.2]} 9. b5 {[%clk 0:04:47.8]} 9... dxe4
{[%clk 0:04:31.4]} 10. dxe4 {[%clk 0:04:46.4]} 10... Ne7 {[%clk 0:04:29.8]} 11.
Nxe5 {[%clk 0:04:45.3]} 11... O-O {[%clk 0:04:28.1]} 12. a4 {[%clk 0:04:39.2]}
12... a5 {[%clk 0:04:24.9]} 13. Ba3 {[%clk 0:04:35.7]} 13... Re8 {[%clk
0:04:22.8]} 14. Qc2 {[%clk 0:04:31.9]} 14... Nd7 {[%clk 0:04:11.1]} 15. Nxd7
{[%clk 0:04:29]} 15... Qxd7 {[%clk 0:04:11]} 16. Nc4 {[%clk 0:04:26.1]} 16...
Ba7 {[%clk 0:04:04.8]} 17. Rad1 {[%clk 0:04:23]} 17... Qc8 {[%clk 0:04:03.9]}
18. Nxa5 {[%clk 0:03:57.8]} 18... Bxf2+ {[%clk 0:03:59.5]} 19. Rxf2 {[%clk
0:03:56.3]} 19... Rxa5 {[%clk 0:03:58.3]} 20. Bb4 {[%clk 0:03:54.7]} 20... Ra8
{[%clk 0:03:56]} 21. c4 {[%clk 0:03:51.5]} 21... Ng6 {[%clk 0:03:52.5]} 22. c5
{[%clk 0:03:44.9]} 22... Rd8 {[%clk 0:03:45.3]} 23. Rxd8+ {[%clk 0:03:36.5]}
23... Qxd8 {[%clk 0:03:45.2]} 24. Bf1 {[%clk 0:03:29.7]} 24... Qd4 {[%clk
0:03:38.5]} 25. c6 {[%clk 0:03:11.2]} 25... Qxb4 {[%clk 0:03:17.6]} 0-1

[Event "Live Chess"]
[Site "Chess.com"]
[Date "2023.05.21"]
[Round "-"]
[White "JoshMcK"]
[Black "WelshTiger"]
[Result "0-1"]
[WhiteElo "1520"]
[BlackElo "2348"]
[TimeControl "300"]
[EndTime "3:18:55 PDT"]
[Termination "WelshTiger won by resignation"]

1. e4 {[%clk 0:04:58.8]} 1... c5 {[%clk 0:04:58.2]} 2. c3 {[%clk 0:04:57]} 2...
Nf6 {[%clk 0:04:55]} 3. e5 {[%clk 0:04:55.9]} 3... Nd5 {[%clk 0:04:54.4]} 4. Nf3
{[%clk 0:04:53.2]} 4... e6 {[%clk 0:04:52.9]} 5. Bc4 {[%clk 0:04:41.1]} 5... Nc6
{[%clk 0:04:51.4]} 6. O-O {[%clk 0:04:31]} 6... d6 {[%clk 0:04:50.7]} 7. d4
{[%clk 0:04:17.7]} 7... cxd4 {[%clk 0:04:40.9]} 8. cxd4 {[%clk 0:04:17.6]} 8...
Be7 {[%clk 0:04:39.8]} 9. exd6 {[%clk 0:03:59.1]} 9... Qxd6 {[%clk 0:04:37.4]}
10. Nc3 {[%clk 0:03:50.6]} 10... Nxc3 {[%clk 0:04:32.3]} 11. bxc3 {[%clk
0:03:47.7]} 11... b6 {[%clk 0:04:24.9]} 12. Bb5 {[%clk 0:03:35.9]} 12... Bd7
{[%clk 0:04:22.9]} 13. Ne5 {[%clk 0:03:15]} 13... Nxe5 {[%clk 0:04:19.2]} 14.
dxe5 {[%clk 0:03:13.8]} 14... Qxd1 {[%clk 0:04:17.7]} 15. Rxd1 {[%clk
0:03:12.6]} 15... Bxb5 {[%clk 0:04:16.9]} 16. a4 {[%clk 0:03:06.4]} 16... Bc4
{[%clk 0:04:10.6]} 17. Be3 {[%clk 0:03:03.9]} 17... Rd8 {[%clk 0:04:05.8]} 18.
Rxd8+ {[%clk 0:03:00.4]} 18... Bxd8 {[%clk 0:04:05]} 19. Rd1 {[%clk 0:02:59.8]}
19... Bc7 {[%clk 0:04:04]} 20. f4 {[%clk 0:02:54.1]} 20... Ke7 {[%clk 0:04:02]}
21. a5 {[%clk 0:02:51.7]} 21... Rd8 {[%clk 0:03:59.3]} 22. Rxd8 {[%clk
0:02:48.9]} 22... Bxd8 {[%clk 0:03:58]} 23. axb6 {[%clk 0:02:48.6]} 23... Bxb6
{[%clk 0:03:57.2]} 24. Bxb6 {[%clk 0:02:47.7]} 24... axb6 {[%clk 0:03:56.6]} 25.
Kf2 {[%clk 0:02:47.2]} 25... Kd7 {[%clk 0:03:56]} 26. Ke3 {[%clk 0:02:46.8]}
26... Kc6 {[%clk 0:03:55.6]} 27. Kd4 {[%clk 0:02:46]} 27... Kb5 {[%clk
0:03:54.7]} 28. g4 {[%clk 0:02:42.1]} 28... Be2 {[%clk 0:03:51.6]} 29. g5 {[%clk
0:02:40.9]} 29... g6 {[%clk 0:03:49.5]} 30. h4 {[%clk 0:02:39.5]} 30... Bg4
{[%clk 0:03:47.2]} 31. Ke3 {[%clk 0:02:38.1]} 31... Kc4 {[%clk 0:03:46.2]} 32.
Kd2 {[%clk 0:02:37.3]} 32... Bf5 {[%clk 0:03:43.7]} 0-1

[Event "Live Chess"]
[Site "Chess.com"]
[Date "2023.05.21"]
[Round "-"]
[White "raminguy"]
[Black "ranvir123"]
[Result "1-0"]
[WhiteElo "1956"]
[BlackElo "961"]
[TimeControl "300"]
[EndTime "3:19:05 PDT"]
[Termination "raminguy won by resignation"]

1. d4 {[%clk 0:04:59]} 1... Nf6 {[%clk 0:04:56]} 2. Nc3 {[%clk 0:04:58.1]} 2...
g6 {[%clk 0:04:55.6]} 3. Bf4 {[%clk 0:04:57.2]} 3... Bg7 {[%clk 0:04:55.5]} 4.
Qd2 {[%clk 0:04:56.5]} 4... O-O {[%clk 0:04:54.5]} 5. Bh6 {[%clk 0:04:56]} 5...
d5 {[%clk 0:04:51.4]} 6. h4 {[%clk 0:04:54.6]} 6... Nc6 {[%clk 0:04:43.7]} 7.
Nf3 {[%clk 0:04:50.5]} 7... Bg4 {[%clk 0:04:41]} 8. Bxg7 {[%clk 0:04:46.7]} 8...
Kxg7 {[%clk 0:04:39.7]} 9. O-O-O {[%clk 0:04:45.3]} 9... Bxf3 {[%clk 0:04:31.2]}
10. exf3 {[%clk 0:04:42.3]} 10... e5 {[%clk 0:04:29.9]} 11. dxe5 {[%clk
0:04:36.5]} 11... Nxe5 {[%clk 0:04:28.8]} 12. Be2 {[%clk 0:04:16.9]} 12... c6
{[%clk 0:04:24.7]} 13. g4 {[%clk 0:04:14]} 13... h5 {[%clk 0:04:15.9]} 14. gxh5
{[%clk 0:04:10.7]} 14... Nxh5 {[%clk 0:04:14.8]} 15. Rdg1 {[%clk 0:04:08.3]}
15... d4 {[%clk 0:04:11.5]} 16. Ne4 {[%clk 0:04:01.4]} 16... f5 {[%clk
0:04:07.1]} 17. Ng5 {[%clk 0:03:59.2]} 17... b5 {[%clk 0:03:47.8]} 18. Ne6+
{[%clk 0:03:57]} 1-0

[Event "Live Chess"]
[Site "Chess.com"]
[Date "2023.05.21"]
[Round "-"]
[White "McSlash1"]
[Black "SupremeTactician"]
[Result "1-0"]
[WhiteElo "2021"]
[BlackElo "2213"]
[TimeControl "300"]
[EndTime "3:19:06 PDT"]
[Termination "McSlash1 won by resignation"]

1. e4 {[%clk 0:04:59.4]} 1... e5 {[%clk 0:04:58.7]} 2. Nf3 {[%clk 0:04:58.5]}
2... Nc6 {[%clk 0:04:58.2]} 3. Bb5 {[%clk 0:04:58.1]} 3... a6 {[%clk 0:04:57.1]}
4. Ba4 {[%clk 0:04:57.6]} 4... Nf6 {[%clk 0:04:56.8]} 5. O-O {[%clk 0:04:56.3]}
5... Nxe4 {[%clk 0:04:56.5]} 6. Re1 {[%clk 0:04:55.4]} 6... Nc5 {[%clk
0:04:55.6]} 7. Bxc6 {[%clk 0:04:54.7]} 7... dxc6 {[%clk 0:04:54.8]} 8. Nxe5
{[%clk 0:04:54.6]} 8... Be7 {[%clk 0:04:54.4]} 9. d4 {[%clk 0:04:54.1]} 9... Ne6
{[%clk 0:04:54]} 10. c3 {[%clk 0:04:53.5]} 10... O-O {[%clk 0:04:53.7]} 11. Nd2
{[%clk 0:04:51]} 11... c5 {[%clk 0:04:52.9]} 12. Ndf3 {[%clk 0:04:50.4]} 12...
cxd4 {[%clk 0:04:52.2]} 13. cxd4 {[%clk 0:04:50.3]} 13... b6 {[%clk 0:04:50.1]}
14. Qb3 {[%clk 0:04:46]} 14... Bb7 {[%clk 0:04:48.6]} 15. Bd2 {[%clk 0:04:37.5]}
15... Bd5 {[%clk 0:04:47.3]} 16. Qc2 {[%clk 0:04:35.3]} 16... Bxf3 {[%clk
0:04:44.6]} 17. Nxf3 {[%clk 0:04:33.1]} 17... Re8 {[%clk 0:04:43.3]} 18. Rad1
{[%clk 0:04:29.7]} 18... Bd6 {[%clk 0:04:42.4]} 19. h4 {[%clk 0:04:16.3]} 19...
Nf4 {[%clk 0:04:37.1]} 20. Bxf4 {[%clk 0:04:12.9]} 20... Bxf4 {[%clk 0:04:15.2]}
21. g3 {[%clk 0:04:10.8]} 21... Bd6 {[%clk 0:04:12.2]} 22. Rxe8+ {[%clk
0:04:08.3]} 22... Qxe8 {[%clk 0:04:11.4]} 23. Re1 {[%clk 0:04:07.8]} 23... Qd7
{[%clk 0:04:10.6]} 24. Qe4 {[%clk 0:04:06.1]} 24... Rd8 {[%clk 0:04:09.2]} 25.
Ng5 {[%clk 0:04:01.3]} 25... g6 {[%clk 0:04:08.3]} 26. d5 {[%clk 0:03:53.3]}
26... h6 {[%clk 0:04:03.7]} 27. Nf3 {[%clk 0:03:48.9]} 27... Kf8 {[%clk
0:04:01.4]} 28. Qd4 {[%clk 0:03:44.4]} 28... Kg8 {[%clk 0:04:00.6]} 29. Ne5
{[%clk 0:03:34.3]} 29... Bxe5 {[%clk 0:03:59.3]} 30. Qxe5 {[%clk 0:03:32.8]}
30... Qd6 {[%clk 0:03:57.1]} 31. Qd4 {[%clk 0:03:22.9]} 31... Qxd5 {[%clk
0:03:55.3]} 32. Re8+ {[%clk 0:03:22.5]} 32... Rxe8 {[%clk 0:03:53.8]} 33. Qxd5
{[%clk 0:03:21.4]} 33... Re6 {[%clk 0:03:52.1]} 34. Qa8+ {[%clk 0:03:19.1]} 1-0

[Event "Live Chess"]
[Site "Chess.com"]
[Date "2023.05.21"]
[Round "-"]
[White "Vitalii18a"]
[Black "apl_trainer"]
[Result "0-1"]
[WhiteElo "1115"]
[BlackElo "1769"]
[TimeControl "300"]
[EndTime "3:19:25 PDT"]
[Termination "apl_trainer won on time"]

1. e4 {[%clk 0:04:47.2]} 1... c5 {[%clk 0:04:58.6]} 2. c3 {[%clk 0:04:45.7]}
2... Nf6 {[%clk 0:04:57.4]} 3. Bd3 {[%clk 0:04:43.6]} 3... Nc6 {[%clk
0:04:46.4]} 4. Nf3 {[%clk 0:04:41.4]} 4... e5 {[%clk 0:04:44.1]} 5. O-O {[%clk
0:04:36.3]} 5... g6 {[%clk 0:04:42.7]} 6. Bc2 {[%clk 0:04:34.8]} 6... Bg7 {[%clk
0:04:38.8]} 7. d4 {[%clk 0:04:33.4]} 7... d6 {[%clk 0:04:30]} 8. dxc5 {[%clk
0:04:22.3]} 8... dxc5 {[%clk 0:04:28.2]} 9. Bg5 {[%clk 0:04:10.3]} 9... h6
{[%clk 0:04:22.4]} 10. Bh4 {[%clk 0:04:08.3]} 10... O-O {[%clk 0:04:19.5]} 11.
Na3 {[%clk 0:04:01.7]} 11... Be6 {[%clk 0:04:17]} 12. Re1 {[%clk 0:03:25.3]}
12... a6 {[%clk 0:04:15.2]} 13. Bg3 {[%clk 0:03:21.3]} 13... Nh5 {[%clk
0:04:13.2]} 14. Bh4 {[%clk 0:02:54.4]} 14... Qc7 {[%clk 0:04:10.5]} 15. h3
{[%clk 0:02:34.4]} 15... Nf4 {[%clk 0:04:07.7]} 16. Nh2 {[%clk 0:02:23.8]} 16...
b5 {[%clk 0:04:04]} 17. Bd3 {[%clk 0:02:00.6]} 17... g5 {[%clk 0:03:54.4]} 18.
Bg3 {[%clk 0:01:55.3]} 18... Rad8 {[%clk 0:03:52.6]} 19. Bxf4 {[%clk 0:01:47.6]}
19... exf4 {[%clk 0:03:51.3]} 20. c4 {[%clk 0:01:29.4]} 20... Ne5 {[%clk
0:03:46.6]} 21. cxb5 {[%clk 0:01:13.1]} 21... Nxd3 {[%clk 0:03:37]} 22. bxa6
{[%clk 0:01:04.6]} 22... Nxe1 {[%clk 0:03:32.7]} 23. Qxe1 {[%clk 0:01:03.6]}
23... Bxb2 {[%clk 0:03:27.2]} 24. Nb5 {[%clk 0:00:52.8]} 24... Qc6 {[%clk
0:03:19.5]} 25. Na7 {[%clk 0:00:32.7]} 25... Qxa6 {[%clk 0:03:15.4]} 26. Rb1
{[%clk 0:00:24]} 26... Bg7 {[%clk 0:03:06.8]} 27. Ng4 {[%clk 0:00:17.9]} 27...
Bxg4 {[%clk 0:03:01.4]} 28. hxg4 {[%clk 0:00:16.5]} 28... Qxa7 {[%clk
0:03:00.1]} 29. g3 {[%clk 0:00:15.3]} 29... fxg3 {[%clk 0:02:55.8]} 30. fxg3
{[%clk 0:00:14.2]} 30... Qxa2 {[%clk 0:02:54]} 31. Rb7 {[%clk 0:00:10]} 31...
Rd2 {[%clk 0:02:48.7]} 32. Qe3 {[%clk 0:00:01.9]} 32... Qa1+ {[%clk 0:02:43.2]}
0-1

[Event "Live Chess"]
[Site "Chess.com"]
[Date "2023.05.21"]
[Round "-"]
[White "Davidagye"]
[Black "Sweet-O"]
[Result "1-0"]
[WhiteElo "1679"]
[BlackElo "1425"]
[TimeControl "300"]
[EndTime "3:19:30 PDT"]
[Termination "Davidagye won by resignation"]

1. b4 {[%clk 0:04:52.6]} 1... d5 {[%clk 0:04:57.8]} 2. Bb2 {[%clk 0:04:51.6]}
2... e6 {[%clk 0:04:57.2]} 3. Nf3 {[%clk 0:04:50]} 3... c5 {[%clk 0:04:56.5]} 4.
bxc5 {[%clk 0:04:48.7]} 4... Bxc5 {[%clk 0:04:56.4]} 5. Bxg7 {[%clk 0:04:47.7]}
5... Qb6 {[%clk 0:04:53.3]} 6. d4 {[%clk 0:04:45.8]} 6... Qb2 {[%clk 0:04:47.6]}
7. Nbd2 {[%clk 0:04:44.3]} 7... Nc6 {[%clk 0:04:24.3]} 8. Rb1 {[%clk 0:04:37.6]}
8... Qc3 {[%clk 0:04:19.6]} 9. Rb3 {[%clk 0:04:35.8]} 9... Qa5 {[%clk 0:04:09]}
10. dxc5 {[%clk 0:04:33.9]} 10... Qxa2 {[%clk 0:03:53.4]} 11. Bxh8 {[%clk
0:04:25.6]} 1-0

[Event "Live Chess"]
[Site "Chess.com"]
[Date "2023.05.21"]
[Round "-"]
[White "jagbama"]
[Black "Biranidun"]
[Result "0-1"]
[WhiteElo "1177"]
[BlackElo "2540"]
[TimeControl "300"]
[EndTime "3:19:53 PDT"]
[Termination "Biranidun won by checkmate"]

1. e4 {[%clk 0:04:53.4]} 1... c5 {[%clk 0:04:58.5]} 2. Bc4 {[%clk 0:04:48.3]}
2... e6 {[%clk 0:04:57.6]} 3. c3 {[%clk 0:04:46.3]} 3... Nc6 {[%clk 0:04:56.3]}
4. d4 {[%clk 0:04:41.6]} 4... d5 {[%clk 0:04:53.8]} 5. exd5 {[%clk 0:04:40.9]}
5... exd5 {[%clk 0:04:53.5]} 6. Bb5 {[%clk 0:04:39.9]} 6... Nf6 {[%clk
0:04:50.2]} 7. Nf3 {[%clk 0:04:35.5]} 7... Be7 {[%clk 0:04:48.1]} 8. O-O {[%clk
0:04:33.9]} 8... O-O {[%clk 0:04:47.5]} 9. Be3 {[%clk 0:04:13.1]} 9... Qb6
{[%clk 0:04:45.3]} 10. Bxc6 {[%clk 0:04:07.6]} 10... bxc6 {[%clk 0:04:45.2]} 11.
b3 {[%clk 0:03:59.8]} 11... Bg4 {[%clk 0:04:42.6]} 12. h3 {[%clk 0:03:50.6]}
12... Bh5 {[%clk 0:04:41.8]} 13. Re1 {[%clk 0:03:38.1]} 13... Ne4 {[%clk
0:04:40]} 14. Nbd2 {[%clk 0:03:30.7]} 14... Nxc3 {[%clk 0:04:38.8]} 15. Qc2
{[%clk 0:03:19.9]} 15... Bxf3 {[%clk 0:04:28.2]} 16. Nxf3 {[%clk 0:03:16.9]}
16... Ne4 {[%clk 0:04:27]} 17. Ne5 {[%clk 0:03:11.4]} 17... cxd4 {[%clk
0:04:19.5]} 18. Nd7 {[%clk 0:03:08.1]} 18... dxe3 {[%clk 0:04:18.8]} 19. Nxb6
{[%clk 0:03:06.6]} 19... exf2+ {[%clk 0:04:17.7]} 20. Kf1 {[%clk 0:02:58.2]}
20... fxe1=Q+ {[%clk 0:04:14.5]} 21. Rxe1 {[%clk 0:02:58.1]} 21... axb6 {[%clk
0:04:13.7]} 22. Qxc6 {[%clk 0:02:52.1]} 22... Bc5 {[%clk 0:04:11.9]} 23. Qxd5
{[%clk 0:02:48]} 23... Ng3# {[%clk 0:04:11.2]} 0-1

[Event "Live Chess"]
[Site "Chess.com"]
[Date "2023.05.21"]
[Round "-"]
[White "DfNn"]
[Black "CeladonFish"]
[Result "1/2-1/2"]
[WhiteElo "1547"]
[BlackElo "1096"]
[TimeControl "300"]
[EndTime "3:20:08 PDT"]
[Termination "Game drawn by agreement"]

1. e4 {[%clk 0:04:58.8]} 1... d6 {[%clk 0:04:58.5]} 2. f4 {[%clk 0:04:58.7]}
2... Nf6 {[%clk 0:04:57.5]} 3. Nc3 {[%clk 0:04:55.6]} 3... g6 {[%clk 0:04:55.6]}
4. Nf3 {[%clk 0:04:54.3]} 4... Bg7 {[%clk 0:04:53.7]} 5. d3 {[%clk 0:04:53.2]}
5... Nc6 {[%clk 0:04:51.4]} 6. Be2 {[%clk 0:04:52.2]} 6... O-O {[%clk
0:04:48.3]} 7. Be3 {[%clk 0:04:51]} 7... Re8 {[%clk 0:04:44.1]} 8. Qd2 {[%clk
0:04:50]} 8... Nb4 {[%clk 0:04:37.5]} 9. O-O-O {[%clk 0:04:46.7]} 9... Ng4
{[%clk 0:04:30.7]} 10. a3 {[%clk 0:04:43.3]} 10... Bxc3 {[%clk 0:04:22.2]} 11.
bxc3 {[%clk 0:04:36]} 11... Nc6 {[%clk 0:03:58.6]} 12. Kb2 {[%clk 0:04:21]}
12... d5 {[%clk 0:03:54.6]} 13. exd5 {[%clk 0:04:17.7]} 13... Qxd5 {[%clk
0:03:52.6]} 14. c4 {[%clk 0:04:16.5]} 14... Qe6 {[%clk 0:03:41.8]} 15. Bc5
{[%clk 0:04:10.6]} 15... b6 {[%clk 0:03:38.5]} 16. Bb4 {[%clk 0:04:08.5]} 16...
a5 {[%clk 0:03:32.8]} 17. Bc3 {[%clk 0:04:07.2]} 17... Nf2 {[%clk 0:03:25.7]}
18. h3 {[%clk 0:03:57.3]} 18... Nxh1 {[%clk 0:03:21.3]} 19. Rxh1 {[%clk
0:03:54.8]} 19... Rd8 {[%clk 0:03:02.7]} 20. h4 {[%clk 0:03:51.4]} 20... Qg4
{[%clk 0:02:57.5]} 21. h5 {[%clk 0:03:40.3]} 21... Qxg2 {[%clk 0:02:53.1]} 22.
Rg1 {[%clk 0:03:38.5]} 22... Qh3 {[%clk 0:02:48.4]} 23. hxg6 {[%clk 0:03:36.6]}
23... hxg6 {[%clk 0:02:45.2]} 24. Ng5 {[%clk 0:03:35.4]} 24... Qf5 {[%clk
0:02:28.5]} 25. Rh1 {[%clk 0:03:32.2]} 25... f6 {[%clk 0:02:20.6]} 26. Ne4
{[%clk 0:03:17.9]} 26... Bb7 {[%clk 0:02:00.1]} 27. Qe3 {[%clk 0:03:16]} 27...
b5 {[%clk 0:01:32.1]} 28. Qg3 {[%clk 0:03:04.8]} 28... bxc4 {[%clk 0:01:16.5]}
29. dxc4 {[%clk 0:02:54.2]} 29... Qxe4 {[%clk 0:01:05.3]} 30. Bd3 {[%clk
0:02:51.9]} 30... Rxd3 {[%clk 0:00:48.1]} 31. cxd3 {[%clk 0:02:48.4]} 31... Qxh1
{[%clk 0:00:46.8]} 32. Qxg6+ {[%clk 0:02:46.2]} 32... Kh8 {[%clk 0:00:36.6]} 33.
Bxf6+ {[%clk 0:02:42.5]} 33... exf6 {[%clk 0:00:33.8]} 34. Qxf6+ {[%clk
0:02:41.4]} 34... Kg8 {[%clk 0:00:32.2]} 35. Qg6+ {[%clk 0:02:39.1]} 35... Kf8
{[%clk 0:00:31.5]} 36. Qf6+ {[%clk 0:02:37.7]} 36... Ke8 {[%clk 0:00:29.7]} 37.
Qe6+ {[%clk 0:02:35.1]} 37... Ne7 {[%clk 0:00:28.9]} 38. f5 {[%clk 0:02:29.1]}
38... Qg2+ {[%clk 0:00:26.6]} 39. Kc3 {[%clk 0:02:27]} 39... Qa2 {[%clk
0:00:25.3]} 40. f6 {[%clk 0:02:22.2]} 40... Qxa3+ {[%clk 0:00:24.6]} 41. Kd4
{[%clk 0:02:21.3]} 41... Qb2+ {[%clk 0:00:22.9]} 42. Ke3 {[%clk 0:02:19.3]}
1/2-1/2

[Event "Live Chess"]
[Site "Chess.com"]
[Date "2023.05.21"]
[Round "-"]
[White "MJMykh"]
[Black "seasidecastle27"]
[Result "0-1"]
[WhiteElo "1182"]
[BlackElo "1905"]
[TimeControl "300"]
[EndTime "3:20:13 PDT"]
[Termination "seasidecastle27 won by checkmate"]

1. e4 {[%clk 0:04:57.9]} 1... d6 {[%clk 0:04:58.5]} 2. Nf3 {[%clk 0:04:56.9]}
2... e5 {[%clk 0:04:55.1]} 3. h3 {[%clk 0:04:55.9]} 3... f5 {[%clk 0:04:50.7]}
4. exf5 {[%clk 0:04:54.9]} 4... Bxf5 {[%clk 0:04:48.7]} 5. Nc3 {[%clk
0:04:54.7]} 5... Nf6 {[%clk 0:04:47.1]} 6. Bc4 {[%clk 0:04:54]} 6... d5 {[%clk
0:04:41.2]} 7. Bb5+ {[%clk 0:04:52]} 7... c6 {[%clk 0:04:39.7]} 8. Ba4 {[%clk
0:04:49]} 8... Nbd7 {[%clk 0:04:32.8]} 9. O-O {[%clk 0:04:46.5]} 9... Bd6 {[%clk
0:04:30.5]} 10. d3 {[%clk 0:04:44]} 10... O-O {[%clk 0:04:28.4]} 11. Bg5 {[%clk
0:04:43.4]} 11... Qe8 {[%clk 0:04:16.6]} 12. Bxf6 {[%clk 0:04:41.7]} 12... Rxf6
{[%clk 0:04:10.5]} 13. d4 {[%clk 0:04:40.8]} 13... e4 {[%clk 0:04:07.1]} 14. Nh4
{[%clk 0:04:33.8]} 14... Be6 {[%clk 0:03:47.4]} 15. Bb3 {[%clk 0:04:26.4]} 15...
Rh6 {[%clk 0:03:36.1]} 16. g3 {[%clk 0:04:24.9]} 16... Qe7 {[%clk 0:02:59]} 17.
Ne2 {[%clk 0:04:15.8]} 17... Rxh4 {[%clk 0:02:51.7]} 18. gxh4 {[%clk 0:04:13.2]}
18... Qxh4 {[%clk 0:02:49.3]} 19. Qd2 {[%clk 0:04:07.7]} 19... Qxh3 {[%clk
0:02:38.9]} 20. Nf4 {[%clk 0:04:05.4]} 20... Qg4+ {[%clk 0:02:25.1]} 21. Ng2
{[%clk 0:04:01]} 21... Rf8 {[%clk 0:02:13.2]} 22. Rae1 {[%clk 0:03:53.2]} 22...
Qh3 {[%clk 0:02:10.8]} 23. f4 {[%clk 0:03:48.1]} 23... exf3 {[%clk 0:02:05.9]}
24. Ne3 {[%clk 0:03:37]} 24... Qg3+ {[%clk 0:01:49.2]} 25. Kh1 {[%clk
0:03:35.1]} 25... f2 {[%clk 0:01:37.3]} 26. Rxf2 {[%clk 0:03:26.4]} 26... Rxf2
{[%clk 0:01:35]} 27. Qxf2 {[%clk 0:03:17.6]} 27... Qxf2 {[%clk 0:01:32.8]} 28.
Ng2 {[%clk 0:03:09.1]} 28... Qg3 {[%clk 0:01:23.6]} 29. Kg1 {[%clk 0:03:06]}
29... Qh2+ {[%clk 0:01:15.3]} 30. Kf1 {[%clk 0:03:05]} 30... Bh3 {[%clk
0:01:06.6]} 31. Re2 {[%clk 0:03:02]} 31... Qh1+ {[%clk 0:01:01.6]} 32. Kf2
{[%clk 0:03:00.8]} 32... Qxg2+ {[%clk 0:00:59.3]} 33. Ke3 {[%clk 0:03:00.4]}
33... Bf4+ {[%clk 0:00:48.6]} 34. Kd3 {[%clk 0:02:58.1]} 34... Bf5+ {[%clk
0:00:46.1]} 35. Kc3 {[%clk 0:02:56.2]} 35... Qxe2 {[%clk 0:00:44.3]} 36. Kb4
{[%clk 0:02:55.2]} 36... Bd2+ {[%clk 0:00:41.9]} 37. Ka3 {[%clk 0:02:53.6]}
37... Qa6+ {[%clk 0:00:39.3]} 38. Ba4 {[%clk 0:02:52.3]} 38... b5 {[%clk
0:00:37.5]} 39. b3 {[%clk 0:02:50.5]} 39... bxa4 {[%clk 0:00:35.8]} 40. bxa4
{[%clk 0:02:50.4]} 40... Qa5 {[%clk 0:00:33]} 41. Kb3 {[%clk 0:02:47.8]} 41...
Qb4# {[%clk 0:00:31.4]} 0-1